Workbook

Sheet MÅL
B1: =TODAY() -> 2022-12-06 | C1: MÅL | J1: Träning | K1: Kost
B2: STARTDATUM | C2: KOST- OCH TRÄNINGSDAGBOK
B3: =Startdatum+121 -> 2023-04-06 | C3: KOSTANALYS
B4: SLUTDATUM
B5: 220.00
B6: STARTVIKT
B7: 180.00 | C7: TRÄNINGSANALYS
B8: SLUTVIKT
B9: =Startvikt-SlutVikt -> 40
B10: MÅL MINSKNING
B11: =SlutDatum-Startdatum -> 121
B12: DAGAR TILL MÅL
B13: =Viktmål/B11 -> 0.33
B14: MINSKNING PER DAG

Sheet KOST
B1: KOST | G1: Mål | H1: Träning
B2: =Underrubrik -> KOST- OCH TRÄNINGSDAGBOK
B3: DATUM | C3: TID | D3: BESKRIVNING | E3: KALORIER | F3: KOLHYDRATER | G3: PROTEIN | H3: FETT | I3: ANTECKNINGAR
B4: =Startdatum -> 2022-12-06 | C4: 07:00:00 | D4: Kaffe | E4: 1 | F4: 0 | G4: 0 | H4: 0 | I4: Morgonkaffe
B5: =Startdatum -> 2022-12-06 | C5: 08:00:00 | D5: Beigel | E5: 10 | F5: 10 | G5: 2 | H5: 10 | I5: Lätt frukost
B6: =Startdatum -> 2022-12-06 | C6: 12:00:00 | D6: Lunch | E6: 283 | F6: 46 | G6: 18 | H6: 4 | I6: Kalkonsmörgås
B7: =Startdatum -> 2022-12-06 | C7: 19:00:00 | D7: Middag | E7: 500 | F7: 42 | G7: 35 | H7: 25 | I7: Potatisgratäng
B8: =Startdatum+1 -> 2022-12-07 | C8: 07:00:00 | D8: Kaffe | E8: 1 | F8: 0 | G8: 0 | H8: 0 | I8: Morgonkaffe
B9: =Startdatum+1 -> 2022-12-07 | C9: 08:00:00 | D9: Rostat bröd | E9: 10 | F9: 10 | G9: 2 | H9: 10 | I9: Lätt frukost
B10: =Startdatum+1 -> 2022-12-07 | C10: 12:00:00 | D10: Lunch | E10: 189 | F10: 26 | G10: 3 | H10: 8 | I10: Smörgås
B11: =Startdatum+1 -> 2022-12-07 | C11: 19:00:00 | D11: Middag | E11: 477 | F11: 62 | G11: 14 | H11: 21 | I11: Middag
B12: =Startdatum+2 -> 2022-12-08 | C12: 07:00:00 | D12: Kaffe | E12: 1 | F12: 0 | G12: 0 | H12: 0 | I12: Morgonkaffe
B13: =Startdatum+2 -> 2022-12-08 | C13: 08:00:00 | D13: Beigel | E13: 245 | F13: 48 | G13: 10 | H13: 2 | I13: Lätt frukost
B14: =Startdatum+2 -> 2022-12-08 | C14: 12:00:00 | D14: Lunch | E14: 247 | F14: 11 | G14: 43 | H14: 5 | I14: Sallad
B15: =Startdatum+2 -> 2022-12-08 | C15: 19:00:00 | D15: Middag | E15: 456 | F15: 64 | G15: 32 | H15: 22 | I15: Middag
B16: =Startdatum+3 -> 2022-12-09 | C16: 07:00:00 | D16: Rostat bröd | E16: 10 | F16: 10 | G16: 2 | H16: 10 | I16: Lätt frukost
B17: =Startdatum+3 -> 2022-12-09 | C17: 10:00:00 | D17: Kaffe | E17: 135 | F17: 12 | G17: 9 | H17: 6 | I17: Caffe latte
B18: =Startdatum+3 -> 2022-12-09 | C18: 12:15:00 | D18: Lunch | E18: 184 | F18: 7 | G18: 5 | H18: 15 | I18: Sallad
B19: =Startdatum+5 -> 2022-12-11 | C19: 19:00:00 | D19: Middag | E19: 477 | F19: 62 | G19: 14 | H19: 21 | I19: Middag

Sheet TRÄNING
B1: TRÄNING | F1: Kost | G1: Mål
B2: =Underrubrik -> KOST- OCH TRÄNINGSDAGBOK
B3: DATUM | C3: VARAKTIGHET (MINUTER) | D3: FÖRBRUKADE KALORIER | E3: ANTECKNINGAR
B4: =Startdatum+4 -> 2022-12-10 | C4: 30 | D4: 120 | E4: Träning löpband
B5: =B4+1 -> 2022-12-11 | C5: 60 | D5: 180 | E5: Lågintensiv aerobics
B6: =B5+1 -> 2022-12-12 | C6: 60 | D6: 350 | E6: Högintensiv träning
B7: 2022-12-13 | C7: 30 | D7: 150 | E7: Träning löpband
B8: =B7+1 -> 2022-12-14 | C8: 25 | D8: 125 | E8: Löpning
B9: 2022-12-15 | C9: 20 | D9: 285 | E9: Träning löpband
B10: 2022-12-16 | C10: 40 | D10: 205 | E10: Löpning
B11: 2022-12-17 | C11: 30 | D11: 335 | E11: Löpning
B12: 2022-12-18 | C12: 40 | D12: 175 | E12: Löpning
B13: 2022-12-19 | C13: 45 | D13: 325 | E13: Träning löpband
B14: 2022-12-20 | C14: 40 | D14: 270 | E14: Löpning
B15: 2022-12-21 | C15: 20 | D15: 295 | E15: Träning löpband
B16: 2022-12-22 | C16: 45 | D16: 350 | E16: Löpning
B17: 2022-12-23 | C17: 35 | D17: 320 | E17: Löpning
B18: 2022-12-24 | C18: 40 | D18: 290 | E18: Löpning
B19: =B18+1 -> 2022-12-25 | C19: 25 | D19: 265 | E19: Träning löpband
B20: 2022-12-26 | C20: 20 | D20: 195 | E20: Löpning

Sheet Diagramberäkningar (hidden)
B2: DIAGRAMDATA KOSTANALYS
B4: Startrad | C4: =ROW(Kost[[#Headers],[DATUM]])+1 -> 4 | D4: DATUM | E4: DAG | F4: FETT | G4: PROTEIN | H4: KOLHYDRATER | I4: KALORIER | J4: Antal
B5: Senaste kostpost | C5: =MATCH(9.99E+307,Kost[DATUM])+KostRadStart-1 -> 19 | D5: =IFERROR(IF(INDEX(Kost[],KostSenasteSlut-KostRadStart-J5,1)<>"",INDEX(Kost[],KostSenasteSlut-KostRadStart-J5,1),""),"") -> 2022-12-06 | E5: =UPPER(TEXT(D5,"DDD")) -> TUE | F5: =IFERROR((IF(INDEX(Kost[],KostSenasteSlut-KostRadStart-J5,1)<>"",INDEX(Kost[],KostSenasteSlut-KostRadStart-J5,7),NA())),NA()) -> 3.5 | G5: =IFERROR((IF(INDEX(Kost[],KostSenasteSlut-KostRadStart-J5,1)<>"",INDEX(Kost[],KostSenasteSlut-KostRadStart-J5,6),NA())),NA()) -> 18 | H5: =IFERROR((IF(INDEX(Kost[],KostSenasteSlut-KostRadStart-J5,1)<>"",INDEX(Kost[],KostSenasteSlut-KostRadStart-J5,5),NA())),NA()) -> 46 | I5: =IFERROR((IF(INDEX(Kost[],KostSenasteSlut-KostRadStart-J5,1)<>"",INDEX(Kost[],KostSenasteSlut-KostRadStart-J5,4),NA())),NA()) -> 283 | J5: 12
D6: =IFERROR(IF(INDEX(Kost[],KostSenasteSlut-KostRadStart-J6,1)<>"",INDEX(Kost[],KostSenasteSlut-KostRadStart-J6,1),""),"") -> 2022-12-06 | E6: TUE | F6: =IFERROR((IF(INDEX(Kost[],KostSenasteSlut-KostRadStart-J6,1)<>"",INDEX(Kost[],KostSenasteSlut-KostRadStart-J6,7),NA())),NA()) -> 25 | G6: =IFERROR((IF(INDEX(Kost[],KostSenasteSlut-KostRadStart-J6,1)<>"",INDEX(Kost[],KostSenasteSlut-KostRadStart-J6,6),NA())),NA()) -> 35 | H6: =IFERROR((IF(INDEX(Kost[],KostSenasteSlut-KostRadStart-J6,1)<>"",INDEX(Kost[],KostSenasteSlut-KostRadStart-J6,5),NA())),NA()) -> 42 | I6: =IFERROR((IF(INDEX(Kost[],KostSenasteSlut-KostRadStart-J6,1)<>"",INDEX(Kost[],KostSenasteSlut-KostRadStart-J6,4),NA())),NA()) -> 500 | J6: 11
D7: =IFERROR(IF(INDEX(Kost[],KostSenasteSlut-KostRadStart-J7,1)<>"",INDEX(Kost[],KostSenasteSlut-KostRadStart-J7,1),""),"") -> 2022-12-07 | E7: WED | F7: =IFERROR((IF(INDEX(Kost[],KostSenasteSlut-KostRadStart-J7,1)<>"",INDEX(Kost[],KostSenasteSlut-KostRadStart-J7,7),NA())),NA()) -> 0 | G7: =IFERROR((IF(INDEX(Kost[],KostSenasteSlut-KostRadStart-J7,1)<>"",INDEX(Kost[],KostSenasteSlut-KostRadStart-J7,6),NA())),NA()) -> 0 | H7: =IFERROR((IF(INDEX(Kost[],KostSenasteSlut-KostRadStart-J7,1)<>"",INDEX(Kost[],KostSenasteSlut-KostRadStart-J7,5),NA())),NA()) -> 0 | I7: =IFERROR((IF(INDEX(Kost[],KostSenasteSlut-KostRadStart-J7,1)<>"",INDEX(Kost[],KostSenasteSlut-KostRadStart-J7,4),NA())),NA()) -> 1 | J7: 10
D8: =IFERROR(IF(INDEX(Kost[],KostSenasteSlut-KostRadStart-J8,1)<>"",INDEX(Kost[],KostSenasteSlut-KostRadStart-J8,1),""),"") -> 2022-12-07 | E8: WED | F8: =IFERROR((IF(INDEX(Kost[],KostSenasteSlut-KostRadStart-J8,1)<>"",INDEX(Kost[],KostSenasteSlut-KostRadStart-J8,7),NA())),NA()) -> 10 | G8: =IFERROR((IF(INDEX(Kost[],KostSenasteSlut-KostRadStart-J8,1)<>"",INDEX(Kost[],KostSenasteSlut-KostRadStart-J8,6),NA())),NA()) -> 2 | H8: =IFERROR((IF(INDEX(Kost[],KostSenasteSlut-KostRadStart-J8,1)<>"",INDEX(Kost[],KostSenasteSlut-KostRadStart-J8,5),NA())),NA()) -> 10 | I8: =IFERROR((IF(INDEX(Kost[],KostSenasteSlut-KostRadStart-J8,1)<>"",INDEX(Kost[],KostSenasteSlut-KostRadStart-J8,4),NA())),NA()) -> 10 | J8: 9
D9: =IFERROR(IF(INDEX(Kost[],KostSenasteSlut-KostRadStart-J9,1)<>"",INDEX(Kost[],KostSenasteSlut-KostRadStart-J9,1),""),"") -> 2022-12-07 | E9: WED | F9: =IFERROR((IF(INDEX(Kost[],KostSenasteSlut-KostRadStart-J9,1)<>"",INDEX(Kost[],KostSenasteSlut-KostRadStart-J9,7),NA())),NA()) -> 8 | G9: =IFERROR((IF(INDEX(Kost[],KostSenasteSlut-KostRadStart-J9,1)<>"",INDEX(Kost[],KostSenasteSlut-KostRadStart-J9,6),NA())),NA()) -> 3 | H9: =IFERROR((IF(INDEX(Kost[],KostSenasteSlut-KostRadStart-J9,1)<>"",INDEX(Kost[],KostSenasteSlut-KostRadStart-J9,5),NA())),NA()) -> 26 | I9: =IFERROR((IF(INDEX(Kost[],KostSenasteSlut-KostRadStart-J9,1)<>"",INDEX(Kost[],KostSenasteSlut-KostRadStart-J9,4),NA())),NA()) -> 189 | J9: 8
D10: =IFERROR(IF(INDEX(Kost[],KostSenasteSlut-KostRadStart-J10,1)<>"",INDEX(Kost[],KostSenasteSlut-KostRadStart-J10,1),""),"") -> 2022-12-07 | E10: WED | F10: =IFERROR((IF(INDEX(Kost[],KostSenasteSlut-KostRadStart-J10,1)<>"",INDEX(Kost[],KostSenasteSlut-KostRadStart-J10,7),NA())),NA()) -> 21 | G10: =IFERROR((IF(INDEX(Kost[],KostSenasteSlut-KostRadStart-J10,1)<>"",INDEX(Kost[],KostSenasteSlut-KostRadStart-J10,6),NA())),NA()) -> 13.5 | H10: =IFERROR((IF(INDEX(Kost[],KostSenasteSlut-KostRadStart-J10,1)<>"",INDEX(Kost[],KostSenasteSlut-KostRadStart-J10,5),NA())),NA()) -> 62 | I10: =IFERROR((IF(INDEX(Kost[],KostSenasteSlut-KostRadStart-J10,1)<>"",INDEX(Kost[],KostSenasteSlut-KostRadStart-J10,4),NA())),NA()) -> 477 | J10: 7
D11: =IFERROR(IF(INDEX(Kost[],KostSenasteSlut-KostRadStart-J11,1)<>"",INDEX(Kost[],KostSenasteSlut-KostRadStart-J11,1),""),"") -> 2022-12-08 | E11: THU | F11: =IFERROR((IF(INDEX(Kost[],KostSenasteSlut-KostRadStart-J11,1)<>"",INDEX(Kost[],KostSenasteSlut-KostRadStart-J11,7),NA())),NA()) -> 0 | G11: =IFERROR((IF(INDEX(Kost[],KostSenasteSlut-KostRadStart-J11,1)<>"",INDEX(Kost[],KostSenasteSlut-KostRadStart-J11,6),NA())),NA()) -> 0 | H11: =IFERROR((IF(INDEX(Kost[],KostSenasteSlut-KostRadStart-J11,1)<>"",INDEX(Kost[],KostSenasteSlut-KostRadStart-J11,5),NA())),NA()) -> 0 | I11: =IFERROR((IF(INDEX(Kost[],KostSenasteSlut-KostRadStart-J11,1)<>"",INDEX(Kost[],KostSenasteSlut-KostRadStart-J11,4),NA())),NA()) -> 1 | J11: 6
D12: =IFERROR(IF(INDEX(Kost[],KostSenasteSlut-KostRadStart-J12,1)<>"",INDEX(Kost[],KostSenasteSlut-KostRadStart-J12,1),""),"") -> 2022-12-08 | E12: THU | F12: =IFERROR((IF(INDEX(Kost[],KostSenasteSlut-KostRadStart-J12,1)<>"",INDEX(Kost[],KostSenasteSlut-KostRadStart-J12,7),NA())),NA()) -> 1.5 | G12: =IFERROR((IF(INDEX(Kost[],KostSenasteSlut-KostRadStart-J12,1)<>"",INDEX(Kost[],KostSenasteSlut-KostRadStart-J12,6),NA())),NA()) -> 10 | H12: =IFERROR((IF(INDEX(Kost[],KostSenasteSlut-KostRadStart-J12,1)<>"",INDEX(Kost[],KostSenasteSlut-KostRadStart-J12,5),NA())),NA()) -> 48 | I12: =IFERROR((IF(INDEX(Kost[],KostSenasteSlut-KostRadStart-J12,1)<>"",INDEX(Kost[],KostSenasteSlut-KostRadStart-J12,4),NA())),NA()) -> 245 | J12: 5
D13: =IFERROR(IF(INDEX(Kost[],KostSenasteSlut-KostRadStart-J13,1)<>"",INDEX(Kost[],KostSenasteSlut-KostRadStart-J13,1),""),"") -> 2022-12-08 | E13: THU | F13: =IFERROR((IF(INDEX(Kost[],KostSenasteSlut-KostRadStart-J13,1)<>"",INDEX(Kost[],KostSenasteSlut-KostRadStart-J13,7),NA())),NA()) -> 5 | G13: =IFERROR((IF(INDEX(Kost[],KostSenasteSlut-KostRadStart-J13,1)<>"",INDEX(Kost[],KostSenasteSlut-KostRadStart-J13,6),NA())),NA()) -> 43 | H13: =IFERROR((IF(INDEX(Kost[],KostSenasteSlut-KostRadStart-J13,1)<>"",INDEX(Kost[],KostSenasteSlut-KostRadStart-J13,5),NA())),NA()) -> 11 | I13: =IFERROR((IF(INDEX(Kost[],KostSenasteSlut-KostRadStart-J13,1)<>"",INDEX(Kost[],KostSenasteSlut-KostRadStart-J13,4),NA())),NA()) -> 247 | J13: 4
D14: =IFERROR(IF(INDEX(Kost[],KostSenasteSlut-KostRadStart-J14,1)<>"",INDEX(Kost[],KostSenasteSlut-KostRadStart-J14,1),""),"") -> 2022-12-08 | E14: THU | F14: =IFERROR((IF(INDEX(Kost[],KostSenasteSlut-KostRadStart-J14,1)<>"",INDEX(Kost[],KostSenasteSlut-KostRadStart-J14,7),NA())),NA()) -> 22 | G14: =IFERROR((IF(INDEX(Kost[],KostSenasteSlut-KostRadStart-J14,1)<>"",INDEX(Kost[],KostSenasteSlut-KostRadStart-J14,6),NA())),NA()) -> 32 | H14: =IFERROR((IF(INDEX(Kost[],KostSenasteSlut-KostRadStart-J14,1)<>"",INDEX(Kost[],KostSenasteSlut-KostRadStart-J14,5),NA())),NA()) -> 64 | I14: =IFERROR((IF(INDEX(Kost[],KostSenasteSlut-KostRadStart-J14,1)<>"",INDEX(Kost[],KostSenasteSlut-KostRadStart-J14,4),NA())),NA()) -> 456 | J14: 3
D15: =IFERROR(IF(INDEX(Kost[],KostSenasteSlut-KostRadStart-J15,1)<>"",INDEX(Kost[],KostSenasteSlut-KostRadStart-J15,1),""),"") -> 2022-12-09 | E15: FRI | F15: =IFERROR((IF(INDEX(Kost[],KostSenasteSlut-KostRadStart-J15,1)<>"",INDEX(Kost[],KostSenasteSlut-KostRadStart-J15,7),NA())),NA()) -> 10 | G15: =IFERROR((IF(INDEX(Kost[],KostSenasteSlut-KostRadStart-J15,1)<>"",INDEX(Kost[],KostSenasteSlut-KostRadStart-J15,6),NA())),NA()) -> 2 | H15: =IFERROR((IF(INDEX(Kost[],KostSenasteSlut-KostRadStart-J15,1)<>"",INDEX(Kost[],KostSenasteSlut-KostRadStart-J15,5),NA())),NA()) -> 10 | I15: =IFERROR((IF(INDEX(Kost[],KostSenasteSlut-KostRadStart-J15,1)<>"",INDEX(Kost[],KostSenasteSlut-KostRadStart-J15,4),NA())),NA()) -> 10 | J15: 2
D16: =IFERROR(IF(INDEX(Kost[],KostSenasteSlut-KostRadStart-J16,1)<>"",INDEX(Kost[],KostSenasteSlut-KostRadStart-J16,1),""),"") -> 2022-12-09 | E16: FRI | F16: =IFERROR((IF(INDEX(Kost[],KostSenasteSlut-KostRadStart-J16,1)<>"",INDEX(Kost[],KostSenasteSlut-KostRadStart-J16,7),NA())),NA()) -> 5.51 | G16: =IFERROR((IF(INDEX(Kost[],KostSenasteSlut-KostRadStart-J16,1)<>"",INDEX(Kost[],KostSenasteSlut-KostRadStart-J16,6),NA())),NA()) -> 8.81 | H16: =IFERROR((IF(INDEX(Kost[],KostSenasteSlut-KostRadStart-J16,1)<>"",INDEX(Kost[],KostSenasteSlut-KostRadStart-J16,5),NA())),NA()) -> 12.36 | I16: =IFERROR((IF(INDEX(Kost[],KostSenasteSlut-KostRadStart-J16,1)<>"",INDEX(Kost[],KostSenasteSlut-KostRadStart-J16,4),NA())),NA()) -> 135 | J16: 1
D17: =IFERROR(IF(INDEX(Kost[],KostSenasteSlut-KostRadStart-J17,1)<>"",INDEX(Kost[],KostSenasteSlut-KostRadStart-J17,1),""),"") -> 2022-12-09 | E17: FRI | F17: =IFERROR((IF(INDEX(Kost[],KostSenasteSlut-KostRadStart-J17,1)<>"",INDEX(Kost[],KostSenasteSlut-KostRadStart-J17,7),NA())),NA()) -> 15 | G17: =IFERROR((IF(INDEX(Kost[],KostSenasteSlut-KostRadStart-J17,1)<>"",INDEX(Kost[],KostSenasteSlut-KostRadStart-J17,6),NA())),NA()) -> 5.43 | H17: =IFERROR((IF(INDEX(Kost[],KostSenasteSlut-KostRadStart-J17,1)<>"",INDEX(Kost[],KostSenasteSlut-KostRadStart-J17,5),NA())),NA()) -> 7 | I17: =IFERROR((IF(INDEX(Kost[],KostSenasteSlut-KostRadStart-J17,1)<>"",INDEX(Kost[],KostSenasteSlut-KostRadStart-J17,4),NA())),NA()) -> 184 | J17: 0
D18: =IFERROR(IF(INDEX(Kost[],KostSenasteSlut-KostRadStart-J18,1)<>"",INDEX(Kost[],KostSenasteSlut-KostRadStart-J18,1)),"") -> 2022-12-11 | E18: SUN | F18: =IFERROR((IF(INDEX(Kost[],KostSenasteSlut-KostRadStart-J18,1)<>"",INDEX(Kost[],KostSenasteSlut-KostRadStart-J18,7),NA())),NA()) -> 21 | G18: =IFERROR((IF(INDEX(Kost[],KostSenasteSlut-KostRadStart-J18,1)<>"",INDEX(Kost[],KostSenasteSlut-KostRadStart-J18,6),NA())),NA()) -> 13.5 | H18: =IFERROR((IF(INDEX(Kost[],KostSenasteSlut-KostRadStart-J18,1)<>"",INDEX(Kost[],KostSenasteSlut-KostRadStart-J18,5),NA())),NA()) -> 62 | I18: =IFERROR((IF(INDEX(Kost[],KostSenasteSlut-KostRadStart-J18,1)<>"",INDEX(Kost[],KostSenasteSlut-KostRadStart-J18,4),NA())),NA()) -> 477 | J18: -1
B20: DIAGRAMDATA TRÄNINGSANALYS
B22: Startrad | C22: =ROW(Träning[[#Headers],[DATUM]])+1 -> 4 | D22: DATUM | E22: DAG | F22: VARAKTIGHET (MINUTER) | G22: FÖRBRUKADE KALORIER | H22: Antal
B23: Senaste träningspost | C23: =MATCH(9.99E+307,Träning[DATUM])+TräningRadStart-1 -> 20 | D23: =IFERROR(IF(INDEX(Träning[],TräningSenasteSlut-TräningRadStart-H23,1)<>"",INDEX(Träning[],TräningSenasteSlut-TräningRadStart-H23,1)),"") -> 2022-12-26 | E23: =UPPER(TEXT(D23,"DDD")) -> MON | F23: =IFERROR((IF(INDEX(Träning[],TräningSenasteSlut-TräningRadStart-H23,1)<>"",INDEX(Träning[],TräningSenasteSlut-TräningRadStart-H23,2),0)),0) -> 20 | G23: =IFERROR((IF(INDEX(Träning[],TräningSenasteSlut-TräningRadStart-H23,2)<>"",INDEX(Träning[],TräningSenasteSlut-TräningRadStart-H23,3),0)),0) -> 195 | H23: -1
D24: =IFERROR(IF(INDEX(Träning[],TräningSenasteSlut-TräningRadStart-H24,1)<>"",INDEX(Träning[],TräningSenasteSlut-TräningRadStart-H24,1)),"") -> 2022-12-25 | E24: SUN | F24: =IFERROR((IF(INDEX(Träning[],TräningSenasteSlut-TräningRadStart-H24,1)<>"",INDEX(Träning[],TräningSenasteSlut-TräningRadStart-H24,2),0)),0) -> 25 | G24: =IFERROR((IF(INDEX(Träning[],TräningSenasteSlut-TräningRadStart-H24,2)<>"",INDEX(Träning[],TräningSenasteSlut-TräningRadStart-H24,3),0)),0) -> 265 | H24: 0
D25: =IFERROR(IF(INDEX(Träning[],TräningSenasteSlut-TräningRadStart-H25,1)<>"",INDEX(Träning[],TräningSenasteSlut-TräningRadStart-H25,1)),"") -> 2022-12-24 | E25: SAT | F25: =IFERROR((IF(INDEX(Träning[],TräningSenasteSlut-TräningRadStart-H25,1)<>"",INDEX(Träning[],TräningSenasteSlut-TräningRadStart-H25,2),0)),0) -> 40 | G25: =IFERROR((IF(INDEX(Träning[],TräningSenasteSlut-TräningRadStart-H25,2)<>"",INDEX(Träning[],TräningSenasteSlut-TräningRadStart-H25,3),0)),0) -> 290 | H25: 1
D26: =IFERROR(IF(INDEX(Träning[],TräningSenasteSlut-TräningRadStart-H26,1)<>"",INDEX(Träning[],TräningSenasteSlut-TräningRadStart-H26,1)),"") -> 2022-12-23 | E26: FRI | F26: =IFERROR((IF(INDEX(Träning[],TräningSenasteSlut-TräningRadStart-H26,1)<>"",INDEX(Träning[],TräningSenasteSlut-TräningRadStart-H26,2),0)),0) -> 35 | G26: =IFERROR((IF(INDEX(Träning[],TräningSenasteSlut-TräningRadStart-H26,2)<>"",INDEX(Träning[],TräningSenasteSlut-TräningRadStart-H26,3),0)),0) -> 320 | H26: 2
D27: =IFERROR(IF(INDEX(Träning[],TräningSenasteSlut-TräningRadStart-H27,1)<>"",INDEX(Träning[],TräningSenasteSlut-TräningRadStart-H27,1)),"") -> 2022-12-22 | E27: THU | F27: =IFERROR((IF(INDEX(Träning[],TräningSenasteSlut-TräningRadStart-H27,1)<>"",INDEX(Träning[],TräningSenasteSlut-TräningRadStart-H27,2),0)),0) -> 45 | G27: =IFERROR((IF(INDEX(Träning[],TräningSenasteSlut-TräningRadStart-H27,2)<>"",INDEX(Träning[],TräningSenasteSlut-TräningRadStart-H27,3),0)),0) -> 350 | H27: 3
D28: =IFERROR(IF(INDEX(Träning[],TräningSenasteSlut-TräningRadStart-H28,1)<>"",INDEX(Träning[],TräningSenasteSlut-TräningRadStart-H28,1)),"") -> 2022-12-21 | E28: WED | F28: =IFERROR((IF(INDEX(Träning[],TräningSenasteSlut-TräningRadStart-H28,1)<>"",INDEX(Träning[],TräningSenasteSlut-TräningRadStart-H28,2),0)),0) -> 20 | G28: =IFERROR((IF(INDEX(Träning[],TräningSenasteSlut-TräningRadStart-H28,2)<>"",INDEX(Träning[],TräningSenasteSlut-TräningRadStart-H28,3),0)),0) -> 295 | H28: 4
D29: =IFERROR(IF(INDEX(Träning[],TräningSenasteSlut-TräningRadStart-H29,1)<>"",INDEX(Träning[],TräningSenasteSlut-TräningRadStart-H29,1)),"") -> 2022-12-20 | E29: TUE | F29: =IFERROR((IF(INDEX(Träning[],TräningSenasteSlut-TräningRadStart-H29,1)<>"",INDEX(Träning[],TräningSenasteSlut-TräningRadStart-H29,2),0)),0) -> 40 | G29: =IFERROR((IF(INDEX(Träning[],TräningSenasteSlut-TräningRadStart-H29,2)<>"",INDEX(Träning[],TräningSenasteSlut-TräningRadStart-H29,3),0)),0) -> 270 | H29: 5
D30: =IFERROR(IF(INDEX(Träning[],TräningSenasteSlut-TräningRadStart-H30,1)<>"",INDEX(Träning[],TräningSenasteSlut-TräningRadStart-H30,1)),"") -> 2022-12-19 | E30: MON | F30: =IFERROR((IF(INDEX(Träning[],TräningSenasteSlut-TräningRadStart-H30,1)<>"",INDEX(Träning[],TräningSenasteSlut-TräningRadStart-H30,2),0)),0) -> 45 | G30: =IFERROR((IF(INDEX(Träning[],TräningSenasteSlut-TräningRadStart-H30,2)<>"",INDEX(Träning[],TräningSenasteSlut-TräningRadStart-H30,3),0)),0) -> 325 | H30: 6
D31: =IFERROR(IF(INDEX(Träning[],TräningSenasteSlut-TräningRadStart-H31,1)<>"",INDEX(Träning[],TräningSenasteSlut-TräningRadStart-H31,1)),"") -> 2022-12-18 | E31: SUN | F31: =IFERROR((IF(INDEX(Träning[],TräningSenasteSlut-TräningRadStart-H31,1)<>"",INDEX(Träning[],TräningSenasteSlut-TräningRadStart-H31,2),0)),0) -> 40 | G31: =IFERROR((IF(INDEX(Träning[],TräningSenasteSlut-TräningRadStart-H31,2)<>"",INDEX(Träning[],TräningSenasteSlut-TräningRadStart-H31,3),0)),0) -> 175 | H31: 7
D32: =IFERROR(IF(INDEX(Träning[],TräningSenasteSlut-TräningRadStart-H32,1)<>"",INDEX(Träning[],TräningSenasteSlut-TräningRadStart-H32,1)),"") -> 2022-12-17 | E32: SAT | F32: =IFERROR((IF(INDEX(Träning[],TräningSenasteSlut-TräningRadStart-H32,1)<>"",INDEX(Träning[],TräningSenasteSlut-TräningRadStart-H32,2),0)),0) -> 30 | G32: =IFERROR((IF(INDEX(Träning[],TräningSenasteSlut-TräningRadStart-H32,2)<>"",INDEX(Träning[],TräningSenasteSlut-TräningRadStart-H32,3),0)),0) -> 335 | H32: 8
D33: =IFERROR(IF(INDEX(Träning[],TräningSenasteSlut-TräningRadStart-H33,1)<>"",INDEX(Träning[],TräningSenasteSlut-TräningRadStart-H33,1)),"") -> 2022-12-16 | E33: FRI | F33: =IFERROR((IF(INDEX(Träning[],TräningSenasteSlut-TräningRadStart-H33,1)<>"",INDEX(Träning[],TräningSenasteSlut-TräningRadStart-H33,2),0)),0) -> 40 | G33: =IFERROR((IF(INDEX(Träning[],TräningSenasteSlut-TräningRadStart-H33,2)<>"",INDEX(Träning[],TräningSenasteSlut-TräningRadStart-H33,3),0)),0) -> 205 | H33: 9
D34: =IFERROR(IF(INDEX(Träning[],TräningSenasteSlut-TräningRadStart-H34,1)<>"",INDEX(Träning[],TräningSenasteSlut-TräningRadStart-H34,1)),"") -> 2022-12-15 | E34: THU | F34: =IFERROR((IF(INDEX(Träning[],TräningSenasteSlut-TräningRadStart-H34,1)<>"",INDEX(Träning[],TräningSenasteSlut-TräningRadStart-H34,2),0)),0) -> 20 | G34: =IFERROR((IF(INDEX(Träning[],TräningSenasteSlut-TräningRadStart-H34,2)<>"",INDEX(Träning[],TräningSenasteSlut-TräningRadStart-H34,3),0)),0) -> 285 | H34: 10
D35: =IFERROR(IF(INDEX(Träning[],TräningSenasteSlut-TräningRadStart-H35,1)<>"",INDEX(Träning[],TräningSenasteSlut-TräningRadStart-H35,1)),"") -> 2022-12-14 | E35: WED | F35: =IFERROR((IF(INDEX(Träning[],TräningSenasteSlut-TräningRadStart-H35,1)<>"",INDEX(Träning[],TräningSenasteSlut-TräningRadStart-H35,2),0)),0) -> 25 | G35: =IFERROR((IF(INDEX(Träning[],TräningSenasteSlut-TräningRadStart-H35,2)<>"",INDEX(Träning[],TräningSenasteSlut-TräningRadStart-H35,3),0)),0) -> 125 | H35: 11
D36: =IFERROR(IF(INDEX(Träning[],TräningSenasteSlut-TräningRadStart-H36,1)<>"",INDEX(Träning[],TräningSenasteSlut-TräningRadStart-H36,1)),"") -> 2022-12-13 | E36: TUE | F36: =IFERROR((IF(INDEX(Träning[],TräningSenasteSlut-TräningRadStart-H36,1)<>"",INDEX(Träning[],TräningSenasteSlut-TräningRadStart-H36,2),0)),0) -> 30 | G36: =IFERROR((IF(INDEX(Träning[],TräningSenasteSlut-TräningRadStart-H36,2)<>"",INDEX(Träning[],TräningSenasteSlut-TräningRadStart-H36,3),0)),0) -> 150 | H36: 12
